Cogmind - Beta 14 @@@ ROGUE MODE // 2024.09.14 @ 20:31:54 Player: Dull Result: Self-destructed Performance ------------- Evolutions (1) 500 Regions Visited (2) 400 Robots Destroyed (26) 130 Value Destroyed (615) 615 Prototype IDs (2) 40 Alien Tech Used (0) 0 Bonus (0) 0 TOTAL SCORE: 1685 Bonus ------- None Cogmind --------- Core Integrity 400/400 Matter 247/300 Energy 125/125 System Corruption 0% Temperature Cool (0) Movement Rolling (140) Ox4 Location -9/Materials Parts ------- > --- POWER (1) -------- Light Ion Engine > --- PROPULSION (3) --- Wheel Wheel > --- UTILITY (3) ------ Huge Storage Unit Core Shielding > --- WEAPON (2) ------- Medium Laser Assault Rifle > --- INVENTORY (25) --- Ion Engine Ion Engine Ion Engine Light Nuclear Core Aluminum Leg Wheel Compact Wheel Hover Unit Hover Unit Small Storage Unit Core Shielding Core Shielding Core Shielding Mining Laser Hammer Peak State ------------ > --- POWER ------------ Ion Engine > --- PROPULSION ------- Light Treads Light Treads > --- UTILITY ---------- Heat Sink Small Storage Unit > --- WEAPON ----------- Beam Cannon Assault Rifle > --- INVENTORY -------- Light Nuclear Core Light Treads Aluminum Leg Wheel Compact Wheel Medium Laser Beam Cannon Assault Rifle [Rating: 8] Favorites ----------- Power Light Ion Engine Engine Light Ion Engine Propulsion Light Treads Treads Light Treads Leg Aluminum Leg Wheel Compact Wheel Utility Huge Storage Unit Device Heat Sink Storage Huge Storage Unit Protection Light Armor Plating Weapon Assault Rifle Energy Gun Medium Laser Energy Cannon Beam Cannon Ballistic Gun Assault Rifle Build | -11 -10 -9 ------- Run | Yrd Mat Mat Slots Evolved 2 | . . 2 Power . | . . . Propulsion 1 | . . 1 Utility 1 | . . 1 Weapon . | . . . Parts Attached 29 | . 29 . Power 8 | . 8 . Engine 8 | . 8 . Core . | . . . Reactor . | . . . Propulsion 9 | . 9 . Treads 6 | . 6 . Leg . | . . . Wheel 3 | . 3 . Hover . | . . . Flight . | . . . Utility 5 | . 5 . Device 2 | . 2 . Storage 1 | . 1 . Processor . | . . . Hackware . | . . . Protection 2 | . 2 . Artifact . | . . . Weapon 7 | . 7 . Energy Gun 1 | . 1 . Energy Cannon 4 | . 4 . Ballistic Gun 2 | . 2 . Ballistic Cannon . | . . . Launcher . | . . . Special Weapon . | . . . Impact Weapon . | . . . Slashing Weapon . | . . . Piercing Weapon . | . . . Special Melee Weapon . | . . . Unidentified Prototypes . | . . . Parts Lost 7 | . 7 . Power 1 | . 1 . Propulsion 2 | . 2 . Utility 1 | . 1 . Weapon 3 | . 3 . Highest Loss Streak 4 | . 4 . To Critical Strikes . | . . . Average Slot Usage (%) 93 | . 93 77 Engine 13 | . 13 11 Treads 22 | . 22 . Wheel 3 | . 3 22 Device 1 | . 1 . Storage 13 | . 14 11 Protection 8 | . 8 11 Energy Cannon 12 | . 12 . Ballistic Gun 13 | . 13 11 Peak Build Rating 8 | . 8 8 Average Rating 7 | . 7 8 On Entrance 6 | 6 6 8 Naked Turns . | . . . Heaviest Build 91 | 12 91 88 Greatest Support 40 | 20 40 20 Greatest Overweight (x) 29 | . 29 4 Average Overweight (x) 1 | . 1 4 Largest Inventory Capacity 25 | . 25 25 Average Capacity 17 | . 17 25 Most Carried 17 | . 17 15 Average Carried 9 | . 9 15 Final Capacity 25 | 8 25 25 Final Carried 15 | 6 15 15 Class Distribution -------------------- 100% | Mutant Dominant Class ---------------- Mutant | -10/Materials Mutant | -9/Materials Resources | -11 -10 -9 ----------- Run | Yrd Mat Mat Matter Collected 672 | 191 481 . Remotely . | . . . Salvage Created 787 | . 787 . Parts 54 | . 54 . Haulers Intercepted 2 | . 2 . Recyclers Shooed 1 | . 1 . Parts Field Recycled . | . . . Retrieved Matter . | . . . Parts Self-Destructed . | . . . Prevented . | . . . Kills | -11 -10 -9 ------- Run | Yrd Mat Mat Combat Hostiles Destroyed 19 | . 19 . Guns 10 | . 10 . Cannons 9 | . 9 . Classes Destroyed 7 | . 7 . Worker 1 | . 1 . Builder 2 | . 2 . Hauler 2 | . 2 . Operator 1 | . 1 . Watcher 1 | . 1 . Swarmer 6 | . 6 . Grunt 13 | . 13 . Best Kill Streak 4 | . 4 . Combat Bots Only 4 | . 4 . Max Kills in Single Turn 1 | . 1 . Gunslinging . | . . . Exploded . | . . . Melee . | . . . Uniques/NPCs Destroyed . | . . . Combat | -11 -10 -9 -------- Run | Yrd Mat Mat Hostile Shots Fired 114 | . 114 . Missed 17 | . 17 . Damage Taken 1065 | . 1065 . Core 118 | . 118 . Absorbed by Shields . | . . . Redirected to Shielding 2 | . 2 . Core Remaining (%) 76 | 100 52 . Volleys Fired 93 | . 92 1 Largest 2 | . 2 1 Hottest 80 | . 80 20 Shots Fired 171 | . 170 1 Gun 93 | . 92 1 Cannon 78 | . 78 . Launcher . | . . . Special . | . . . Kinetic 93 | . 92 1 Thermal 78 | . 78 . Explosive . | . . . Electromagnetic . | . . . Robot Hit Streak 16 | . 16 1 Robot Miss Streak 5 | . 5 . Penetration Max . | . . . Secondary Targets . | . . . Shots Hit Robots 98 | . 97 1 Core Hits 36 | . 35 1 Critical Kills 1 | . 1 . Critical Parts Destroyed . | . . . Critical Strikes 1 | . 1 . Destroy 1 | . 1 . Melee Attacks . | . . . Impact . | . . . Slashing . | . . . Piercing . | . . . Sneak Attacks . | . . . Combat Hostiles . | . . . Follow-up Attacks . | . . . Damage Inflicted 1547 | . 1537 10 Guns 678 | . 668 10 Cannons 836 | . 836 . Explosions . | . . . Melee . | . . . Ramming 33 | . 33 . Kinetic 678 | . 668 10 Thermal 836 | . 836 . Explosive . | . . . Electromagnetic . | . . . Impact . | . . . Slashing . | . . . Piercing . | . . . Highest Corruption . | . . . Average Corruption . | . . . Corruption Purged . | . . . Corruption Blocked . | . . . Overload Shots . | . . . Overflow Damage 6 | . 6 . Projectiles 6 | . 6 . Explosions . | . . . Melee . | . . . Knockbacks . | . . . Impact . | . . . Kinetic . | . . . Secondary . | . . . Self-Inflicted Damage 3 | . 3 . Shots . | . . . Rammed 7 | . 7 . Targets Rammed 8 | . 8 . Kicked . | . . . Crushed 1 | . 1 . Highest Temperature 282 | . 282 . Average Temperature 94 | . 94 . Received Heat Transfer 459 | . 459 . Siege Activations . | . . . Robots Corrupted . | . . . Combat Hostiles . | . . . Parts Fried . | . . . Impact Corruptions . | . . . Robots Melted . | . . . Combat Hostiles . | . . . Parts Melted 3 | . 3 . Heat Transferred 1739 | . 1739 . Parts Sabotaged . | . . . Parts Stolen . | . . . Parts Stripped . | . . . Power Chain Reactions . | . . . Alert | -11 -10 -9 ------- Run | Yrd Mat Mat Peak Influence 269 | . 269 31 Initial 31 | . . 31 Average 84 | . 85 31 Maximum Alert Level 1 | . 1 . Low Security (%) 95 | . 95 100 Level 1 4 | . 4 . Level 2 . | . . . Level 3 . | . . . Level 4 . | . . . Level 5 . | . . . High Security . | . . . Max Security . | . . . Squads Dispatched 4 | . 3 1 Investigation 1 | . 1 . Extermination . | . . . Reinforcement 3 | . 2 1 Assault . | . . . Garrison . | . . . Intercept . | . . . Searches Triggered . | . . . Construction Impeded . | . . . Haulers Reinforced . | . . . Active Scanning Responses . | . . . Cargo Convoy Interrupts . | . . . Stealth | -11 -10 -9 --------- Run | Yrd Mat Mat Distress Signals 3 | . 3 . Communications Jammed . | . . . Distress Signals . | . . . Times Spotted 36 | . 36 . Peak Tracking Total 4 | . 4 . Tactical Retreats 2 | . 2 . Traps | -11 -10 -9 ------- Run | Yrd Mat Mat Traps Triggered 5 | . 5 . Indirectly . | . . . Trap Hack Attempts . | . . . Triggered . | . . . Disarmed . | . . . Reprogrammed . | . . . Reused . | . . . Traps Extracted . | . . . Installed . | . . . Triggered . | . . . Machines | -11 -10 -9 ---------- Run | Yrd Mat Mat Machines Disabled 5 | . 5 . Max in Single Turn 1 | . 1 . Machines Repaired . | . . . Machines Dismantled . | . . . Machines Sabotaged . | . . . Overloaded Fab Kills . | . . . Hacking | -11 -10 -9 --------- Run | Yrd Mat Mat Machines Accessed 6 | . 6 . Terminals 4 | . 4 . Fabricators . | . . . Repair Stations . | . . . Recycling Units 2 | . 2 . Scanalyzers . | . . . Garrison Access . | . . . Total Hacks 17 | . 17 . Successful 6 | . 6 . Failed 10 | . 10 . Catastrophic 1 | . 1 . Database Lockouts 1 | . 1 . Manual 21 | . 21 . Terminals 9 | . 9 . Fabricators . | . . . Repair Stations . | . . . Recycling Units 8 | . 8 . Scanalyzers . | . . . Garrison Access . | . . . Terminal Hacks 2 | . 2 . Robot Analysis 1 | . 1 . Prototype ID Bank 1 | . 1 . Fabricator Hacks . | . . . Repair Station Hacks . | . . . Recycling Unit Hacks . | . . . Scanalyzer . | . . . Garrison Access Hacks . | . . . Unauthorized Hacks 4 | . 4 . Terminals . | . . . Fabricators . | . . . Repair Stations . | . . . Recycling Units 4 | . 4 . Reject 2 | . 2 . Mask 2 | . 2 . Scanalyzers . | . . . Garrison Access . | . . . Data Cores Recovered . | . . . Used . | . . . Hacking Detections 7 | . 7 . Full Trace Events 1 | . 1 . Feedback Events . | . . . Feedback Blocked . | . . . Robot Schematics Acquired . | . . . Robots Built . | . . . Authchips . | . . . Time . | . . . Total Robot Build Rating . | . . . Part Schematics Acquired . | . . . Parts Built . | . . . Authchips . | . . . Time . | . . . Total Part Build Rating . | . . . Parts Repaired . | . . . Time . | . . . Parts Recycled . | . . . Recycled Matter . | . . . Retrieved Matter . | . . . Retrieved Components . | . . . Parts Scanalyzed . | . . . Part Schematics Acquired . | . . . Parts Damaged . | . . . Bothacking | -11 -10 -9 ------------ Run | Yrd Mat Mat Used RIF Installer . | . . . Robots Hacked . | . . . Non-combat . | . . . Combat . | . . . Robot Hacks Applied . | . . . Relay Couplers Released . | . . . Fabnet Peak Effective % . | . . . Robots Rewired . | . . . Allies Hacked . | . . . Hacks Repelled . | . . . Allies | -11 -10 -9 -------- Run | Yrd Mat Mat Total Allies . | . . . Largest Group . | . . . Highest-Rated Group . | . . . Highest-Rated Ally . | . . . Total Orders . | . . . Ally Attacks . | . . . Total Damage . | . . . Kills . | . . . Allies Corrupted . | . . . Allies Melted . | . . . Intel | -11 -10 -9 ------- Run | Yrd Mat Mat Robot Analysis Total 1 | . 1 . Derelict Logs Recovered . | . . . Drone Launches . | . . . Drone Recoveries . | . . . Exploration | -11 -10 -9 ------------- Run | Yrd Mat Mat Turns Passed 2236 | . 2227 9 Spaces Moved 718 | 1 712 5 Core 6 | . 6 . Treads 659 | . 659 . Legs 1 | 1 . . Wheels 52 | . 47 5 Hover . | . . . Flight . | . . . Fastest Speed 120 | 120 140 140 Average Speed 247 | 120 248 140 Slowest Speed 1500 | 120 1500 140 Overloaded Moves . | . . . Propulsion Burnouts . | . . . Robots Hopped . | . . . Cave-ins Triggered . | . . . Exploration Rate (%) 35 | 2 99 4 Regions Visited 2 Branch Regions . Pre-discovered Areas . | . . . Known Exits Taken . | . . . Unknown Exits Taken 2 | 1 1 . Scrap Searched . | . . . Spaces Dug . | . . . Terrain Destroyed . | . . . Melee . | . . . Projectile . | . . . AOE . | . . . Terrain Rammed . | . . . Walls Destroyed . | . . . Machines Disabled . | . . . Actions | -11 -10 -9 --------- Run | Yrd Mat Mat Total 983 | . 977 6 Wait 119 | . 119 . Move 716 | . 711 5 Hop . | . . . Pick Up 11 | . 11 . Fast Attach 11 | . 11 . Attach 6 | . 6 . Detach 1 | . 1 . Swap 12 | . 12 . Drop 6 | . 6 . Fire 93 | . 92 1 Melee . | . . . Ram 1 | . 1 . Kick . | . . . Crush 7 | . 7 . Escape Stasis . | . . . Rewire . | . . . Trap . | . . . Miscellaneous . | . . . Route ------- -11/Scrapyard -10/Materials (discovered 4 exits: [*Mat x3] / [*Min]) -9/Materials History --------- Turn | Location | Event 1 | -11/Scrapyard | Discovered new exit (range 0) 1 | -11/Scrapyard | Entered Materials 217 | -10/Materials | Discovered new exit (range 16) 359 | -10/Materials | Build established: Mutant 845 | -10/Materials | Central database locked down 849 | -10/Materials | Discovered new exit (range 16) 1661 | -10/Materials | Lost 4 parts (2n1u1w) 1727 | -10/Materials | Discovered new exit (range 8) 2218 | -10/Materials | Discovered new exit (range 5) 2228 | -10/Materials | Entered another Materials area 2228 | -9/Materials | Evolved 2 slots: Propulsion x1, Utility x1 2237 | -9/Materials | Self-destructed Last Messages --------------- 02131_ K-01 Serf collects debris. 02136_ Beam Cannon destroyed. 02137_ K-01 Serf collects debris. 02138_ G-34 Mercenary destroyed. 02141_ K-01 Serf collects debris. 02153_ Acquired Wheel. 02156_ K-01 Serf collects debris. 02160_ Acquired 38 matter. 02162_ K-01 Serf collects debris. 02175_ Slammed into U-05 Engineer. 02175_ Ion Engine broken. 02175_ Destabilizing: Short circuit. 02218_ EXIT=FOUND 02225_ Dropped Broken Ion Engine. PARAMETERS=PROPULSION+1,UTILITY+1 LOCATION=UNKNOWN GOAL=ESCAPE 02234_ O-16 Technician: "IFF HANDSHAKE FAILED. SECURING TERMINAL." 02235_ ALERT: Hostiles spotted, dispatching reinforcements to Terminal M012. Map ----- +----------------------------------------------------+ | ????????????????????????????????????????????? | | ????????????????????????????????????????????? | | ????????????????????????????????????????????? | | ????????????????????????????????????????????? | | ????????????????????????????????????????????? | | ????????????????????????????????????????????? | | ????????????????????????????????????????????? | | ????????????????????????????????????????????? | | ????????????????????????? ????????????????? | | ????????????????????????# ????????????????? | | ????????????????????????# ????????????????? | | ????????????????????????# ????????????????? | | ????????????????????????# #???????????????? | | ????????????????????????# #???????????????? | | ????????????????????????# #???????????????? | | ????????????????????????# #???????????????? | | ????????????????????????# #???????????????? | | ????????????????????????# +???????????????? | | ????????????????????????# #???????????????? | | ?????????????#??????????# #???????????????? | | ????????????? ####### #####???????????? | | ???????????? #???????????? | | ????????????# #???????????? | | ????????????# #???????????? | | ?????????????? ########+######???????????? | | ??????????????????????# @ #????????????? | | ??????????????????????# #????????????? | | ??????????????????????# #????????????? | | ??????????????????????# #????????????? | | ??????????????????????# #????????????? | | ??????????????????????# #????????????? | | ??????????????????????# #????????????? | | ??????????????????????# #????????????? | | ??????????????????????# #????????????? | | ??????????????????????##########????????????? | | ????????????????????????????????????????????? | | ????????????????????????????????????????????? | | | | | | | | | | | | | | | | | | | | | | | | | | | +----------------------------------------------------+ Best States ------------- Heat Dissipation 35 Energy Generation 10 Energy Capacity 250 Matter Stores 300 Matter Capacity 300 Sight Range 16 Terrain Scan Density 10 Armor Coverage 150 Core Shielding 20 Evasion (%) 40 Recoil Reduction 2 Item Schematics ----------------- None Robot Schematics ------------------ None Fabricated ------------ Nothing Alien Tech Used ----------------- None Achievements -------------- None Challenges ------------ None Game ------ Seed NodeNeutronSteel Manual? 0 Play Time 00:10:49 Cumulative 78.3 hours Start 2024.09.14 @ 20:21:08 End 2024.09.14 @ 20:31:54 Sessions 1 Manual Loads 0 Difficulty Rogue Special Mode None Game No. 104 Rogue 104 Adventurer 0 Explorer 0 Win Type - Total 1 Types 1/0/0/0/0/0/0/0/0 Lore% 17 Gallery% 55 Achievement% 43 Wizard Run 0 Options --------- Layout 0 ASCII 0 Keyboard 0 Movement Mouse Keybinds 1 Fullscreen 1 Font 18/TerminusBold Map View 76x50 Zoom Use 0% Tactical HUD 1 Map Filters NONE Filters NONE Steam 1 RUN: b7e57f5d-91a0-4e31-b0be-b557d34ed754